Cogmind - Beta 12 @@@ ROGUE MODE // 2023.09.05 @ 04:14:05 Player: haldagan Result: Destroyed by Y-45 Defender with Heavy Assault Rifle Performance ------------- Evolutions (1) 500 Regions Visited (4) 800 Robots Destroyed (49) 245 Value Destroyed (1453) 1453 Prototype IDs (0) 0 Alien Tech Used (0) 0 Bonus (0) 0 TOTAL SCORE: 2998 Bonus ------- None Cogmind --------- Core Integrity 0/400 Matter 279/300 Energy 100/100 System Corruption 0% Temperature Cool (0) Movement Treading (320) Ox2 Location -9/Storage Parts ------- > --- POWER (1) -------- (None) > --- PROPULSION (3) --- Improved Treads Improved Treads Improved Treads > --- UTILITY (3) ------ High-capacity Storage Unit Cargo Storage Unit > --- WEAPON (2) ------- Heavy Assault Rifle Shotgun > --- INVENTORY (30) --- Ion Engine Light Treads Light Treads Light Treads Light Treads Improved Treads Improved Treads Improved Treads Cargo Storage Unit Cargo Storage Unit Medium Matter Pod (100) Core Shielding Power Shielding Power Shielding Utility Shielding Medium Armor Plating Medium Armor Plating High-powered Tractor Beam Drone Bay (2/2) Drone Bay (2/2) Drone Bay (2/2) Drone Bay (2/2) Drone Bay (2/2) Beamcaster Shotgun Shotgun Plasma Cutter Katana Peak State ------------ > --- POWER ------------ Light Nuclear Core > --- PROPULSION ------- Improved Treads Improved Treads Improved Treads > --- UTILITY ---------- High-capacity Storage Unit Cargo Storage Unit > --- WEAPON ----------- Heavy Assault Rifle Heavy Assault Rifle > --- INVENTORY -------- Ion Engine Light Treads Improved Treads Improved Treads Improved Treads Aluminum Leg Aluminum Leg Aluminum Leg Aluminum Leg Cargo Storage Unit Cargo Storage Unit Medium Matter Pod Core Shielding Power Shielding Power Shielding Utility Shielding Light Armor Plating Medium Armor Plating Medium Armor Plating High-powered Tractor Beam Drone Bay Drone Bay Drone Bay Drone Bay Drone Bay Beamcaster Plasma Cutter Katana [Rating: 22] Favorites ----------- Power Light Ion Engine Engine Light Ion Engine Power Core Light Nuclear Core Propulsion Aluminum Leg Treads Improved Treads Leg Aluminum Leg Utility High-capacity Storage Unit Storage High-capacity Storage Unit Protection Power Shielding Weapon Light Assault Rifle Ballistic Gun Light Assault Rifle Ballistic Cannon Light Cannon Build | -11 -10 -10 -9 -9 ------- Run | Jun Mat Min Mat Sto Slots Evolved 2 | . . . 2 . Power . | . . . . . Propulsion 1 | . . . 1 . Utility 1 | . . . 1 . Weapon . | . . . . . Parts Attached 40 | 6 9 3 8 14 Power 6 | 1 1 1 1 2 Engine 5 | 1 1 1 1 1 Core 1 | . . . . 1 Reactor . | . . . . . Propulsion 17 | 2 4 1 3 7 Treads 5 | 2 . . . 3 Leg 12 | . 4 1 3 4 Wheel . | . . . . . Hover . | . . . . . Flight . | . . . . . Utility 7 | 1 3 . 3 . Device . | . . . . . Storage 6 | 1 3 . 2 . Processor . | . . . . . Hackware . | . . . . . Protection 1 | . . . 1 . Artifact . | . . . . . Weapon 10 | 2 1 1 1 5 Energy Gun . | . . . . . Energy Cannon . | . . . . . Ballistic Gun 8 | 2 . 1 . 5 Ballistic Cannon 2 | . 1 . 1 . Launcher . | . . . . . Special Weapon . | . . . . . Impact Weapon . | . . . . . Slashing Weapon . | . . . . . Piercing Weapon . | . . . . . Special Melee Weapon . | . . . . . Unidentified Prototypes . | . . . . . Parts Lost 10 | . . 1 1 8 Power 3 | . . 1 1 1 Propulsion 3 | . . . . 3 Utility . | . . . . . Weapon 4 | . . . . 4 Highest Loss Streak 5 | . . 1 1 5 To Critical Strikes . | . . . . . Average Slot Usage (%) 92 | . 95 99 94 86 Engine 9 | . 14 13 10 4 Core 2 | . . . . 5 Treads 10 | . 10 . . 17 Leg 19 | . 17 28 33 14 Storage 23 | . 23 28 22 22 Ballistic Gun 18 | . 25 14 11 17 Ballistic Cannon 6 | . 2 14 11 4 Naked Turns . | . . . . . Heaviest Build 191 | 11 30 30 187 191 Greatest Support 69 | 40 40 20 30 69 Greatest Overweight (x) 9 | . 1 1 6 9 Average Overweight (x) 1 | . . 1 1 3 Largest Inventory Capacity 30 | 8 15 15 30 30 Average Capacity 21 | 7 14 15 22 30 Most Carried 30 | 6 15 15 28 30 Average Carried 20 | 4 13 14 20 27 Final Capacity 30 | 8 15 15 30 30 Final Carried 30 | 6 14 14 27 30 Class Distribution -------------------- 52% | Mutant 45% | Hauler-Mutant Dominant Class ---------------- Mutant | -10/Materials Mutant | -10/Mines Hauler-Mutant | -9/Materials Hauler-Mutant | -9/Storage Resources | -11 -10 -10 -9 -9 ----------- Run | Jun Mat Min Mat Sto Matter Collected 1530 | 222 544 168 208 388 Remotely . | . . . . . Salvage Created 1824 | . 392 152 471 809 Parts 111 | . 31 12 25 43 Haulers Intercepted . | . . . . . Recyclers Shooed 2 | . . . 2 . Parts Field Recycled . | . . . . . Retrieved Matter . | . . . . . Parts Self-Destructed . | . . . . . Prevented . | . . . . . Kills | -11 -10 -10 -9 -9 ------- Run | Jun Mat Min Mat Sto Combat Hostiles Destroyed 39 | . 10 7 9 13 Guns 30 | . 10 5 3 12 Cannons 9 | . . 2 6 1 Classes Destroyed 7 | . 4 . 3 . Recycler 5 | . . . 2 3 Operator 1 | . 1 . . . Watcher 4 | . 2 . . 2 Swarmer 6 | . 3 3 . . Grunt 22 | . 7 4 5 6 Duelist 2 | . . . 1 1 Sentry 9 | . . . 3 6 Best Kill Streak 5 | . 3 4 4 5 Combat Bots Only 4 | . 3 4 4 3 Max Kills in Single Turn 2 | . 1 1 1 2 Gunslinging . | . . . . . Exploded . | . . . . . Melee . | . . . . . Uniques/NPCs Destroyed . | . . . . . Combat | -11 -10 -10 -9 -9 -------- Run | Jun Mat Min Mat Sto Damage Taken 2888 | . 676 312 320 1580 Core 594 | . 117 73 16 388 Absorbed by Shields . | . . . . . Redirected to Shielding 16 | . . . 16 . Regen/Repaired (Parts) 10 | . 10 . . . Core Remaining (%) 62 | 100 . 24 . . Volleys Fired 153 | . 52 25 25 51 Largest 2 | . 2 2 2 2 Hottest 58 | . 55 55 55 58 Shots Fired 305 | . 104 50 50 101 Gun 225 | . 98 25 25 77 Cannon 80 | . 6 25 25 24 Launcher . | . . . . . Special . | . . . . . Kinetic 305 | . 104 50 50 101 Thermal . | . . . . . Explosive . | . . . . . Electromagnetic . | . . . . . Robot Hit Streak 23 | . 8 9 16 23 Robot Miss Streak 4 | . 4 4 2 3 Penetration Max . | . . . . . Secondary Targets 4 | . 2 . . 2 Max Gunslinging Chain 1 | . 1 . . 1 Shots Hit Robots 202 | . 66 27 39 70 Core Hits 91 | . 27 10 21 33 Critical Kills 3 | . . . 1 2 Critical Parts Destroyed 3 | . 1 . . 2 Critical Strikes 8 | . 1 1 1 5 Destroy 7 | . 1 . 1 5 Blast 1 | . . 1 . . Melee Attacks . | . . . . . Impact . | . . . . . Slashing . | . . . . . Piercing . | . . . . . Sneak Attacks . | . . . . . Combat Hostiles . | . . . . . Follow-up Attacks . | . . . . . Damage Inflicted 2667 | . 767 329 501 1070 Guns 1826 | . 692 137 178 819 Cannons 841 | . 75 192 323 251 Explosions . | . . . . . Melee . | . . . . . Ramming . | . . . . . Kinetic 2667 | . 767 329 501 1070 Thermal . | . . . . . Explosive . | . . . . . Electromagnetic . | . . . . . Impact . | . . . . . Slashing . | . . . . . Piercing . | . . . . . Highest Corruption . | . . . . . Average Corruption . | . . . . . Corruption Purged . | . . . . . Corruption Blocked . | . . . . . Overload Shots . | . . . . . Overflow Damage 8 | . 8 . . . Projectiles 8 | . 8 . . . Explosions . | . . . . . Melee . | . . . . . Knockbacks 12 | . 1 1 3 7 Impact . | . . . . . Kinetic 10 | . 1 1 3 5 Secondary 2 | . . . . 2 Self-Inflicted Damage . | . . . . . Shots . | . . . . . Rammed . | . . . . . Targets Rammed . | . . . . . Kicked . | . . . . . Crushed . | . . . . . Highest Temperature 84 | . 12 84 28 78 Average Temperature 20 | . 7 41 9 19 Received Heat Transfer 951 | . 234 108 78 531 Siege Activations . | . . . . . Robots Corrupted . | . . . . . Combat Hostiles . | . . . . . Parts Fried . | . . . . . Impact Corruptions . | . . . . . Robots Melted . | . . . . . Combat Hostiles . | . . . . . Parts Melted . | . . . . . Heat Transferred . | . . . . . Parts Sabotaged . | . . . . . Parts Stolen . | . . . . . Parts Stripped . | . . . . . Power Chain Reactions . | . . . . . Missiles Intercepted . | . . . . . Alert | -11 -10 -10 -9 -9 ------- Run | Jun Mat Min Mat Sto Peak Influence 288 | . 125 107 288 116 Initial 37 | . . 22 7 37 Average 60 | . 60 47 169 42 Maximum Alert Level 1 | . . . 1 . Low Security (%) 94 | 100 100 100 48 100 Level 1 5 | . . . 51 . Level 2 . | . . . . . Level 3 . | . . . . . Level 4 . | . . . . . Level 5 . | . . . . . High Security . | . . . . . Max Security . | . . . . . Squads Dispatched . | . . . . . Investigation . | . . . . . Extermination . | . . . . . Reinforcement . | . . . . . Assault . | . . . . . Garrison . | . . . . . Intercept . | . . . . . Searches Triggered . | . . . . . Construction Impeded . | . . . . . Haulers Reinforced . | . . . . . Active Scanning Responses . | . . . . . Cargo Convoy Interrupts . | . . . . . Stealth | -11 -10 -10 -9 -9 --------- Run | Jun Mat Min Mat Sto Distress Signals 4 | . 1 . 2 1 Communications Jammed . | . . . . . Distress Signals . | . . . . . Times Spotted 68 | . 21 11 15 21 Peak Tracking Total 7 | . 4 4 7 4 Tactical Retreats 3 | . . 2 . 1 Traps | -11 -10 -10 -9 -9 ------- Run | Jun Mat Min Mat Sto Traps Triggered 6 | . 2 . . 4 Indirectly . | . . . . . Trap Hack Attempts . | . . . . . Triggered . | . . . . . Disarmed . | . . . . . Reprogrammed . | . . . . . Reused . | . . . . . Traps Extracted . | . . . . . Installed . | . . . . . Triggered . | . . . . . Machines | -11 -10 -10 -9 -9 ---------- Run | Jun Mat Min Mat Sto Machines Disabled 1 | . . . 1 . Max in Single Turn 1 | . . . 1 . Machines Repaired . | . . . . . Machines Sabotaged . | . . . . . Overloaded Fab Kills . | . . . . . Hacking | -11 -10 -10 -9 -9 --------- Run | Jun Mat Min Mat Sto Machines Accessed 9 | . 3 . 1 5 Terminals 5 | . 2 . . 3 Fabricators . | . . . . . Repair Stations 1 | . 1 . . . Recycling Units 3 | . . . 1 2 Scanalyzers . | . . . . . Garrison Access . | . . . . . Total Hacks 16 | . 7 . 1 8 Successful 12 | . 4 . 1 7 Failed 4 | . 3 . . 1 Catastrophic . | . . . . . Database Lockouts . | . . . . . Manual . | . . . . . Terminals 7 | . 2 . . 5 Fabricators . | . . . . . Repair Stations 5 | . 5 . . . Recycling Units 4 | . . . 1 3 Scanalyzers . | . . . . . Garrison Access . | . . . . . Terminal Hacks 7 | . 2 . . 5 Record 5 | . 2 . . 3 Part Schematic 1 | . . . . 1 Open Door 1 | . . . . 1 Fabricator Hacks . | . . . . . Repair Station Hacks 2 | . 2 . . . Scan Component 1 | . 1 . . . Repair 1 | . 1 . . . Recycling Unit Hacks 3 | . . . 1 2 Report Inventory 3 | . . . 1 2 Scanalyzer . | . . . . . Garrison Access Hacks . | . . . . . Unauthorized Hacks . | . . . . . Terminals . | . . . . . Fabricators . | . . . . . Repair Stations . | . . . . . Recycling Units . | . . . . . Scanalyzers . | . . . . . Garrison Access . | . . . . . Data Cores Recovered 1 | . 1 . . . Used . | . . . . . Hacking Detections 4 | . 1 . . 3 Full Trace Events 1 | . 1 . . . Feedback Events . | . . . . . Feedback Blocked . | . . . . . Robot Schematics Acquired . | . . . . . Robots Built . | . . . . . Authchips . | . . . . . Time . | . . . . . Total Robot Build Rating . | . . . . . Part Schematics Acquired 1 | . . . . 1 Parts Built . | . . . . . Authchips . | . . . . . Time . | . . . . . Total Part Build Rating . | . . . . . Parts Repaired 1 | . 1 . . . Time 26 | . 26 . . . Parts Recycled . | . . . . . Recycled Matter . | . . . . . Retrieved Matter . | . . . . . Retrieved Components . | . . . . . Parts Scanalyzed . | . . . . . Part Schematics Acquired . | . . . . . Parts Damaged . | . . . . . Bothacking | -11 -10 -10 -9 -9 ------------ Run | Jun Mat Min Mat Sto Used RIF Installer . | . . . . . Robots Hacked . | . . . . . Non-combat . | . . . . . Combat . | . . . . . Robot Hacks Applied . | . . . . . Relay Couplers Released . | . . . . . Fabnet Peak Effective % . | . . . . . Robots Rewired . | . . . . . Allies Hacked . | . . . . . Hacks Repelled . | . . . . . Allies | -11 -10 -10 -9 -9 -------- Run | Jun Mat Min Mat Sto Total Allies 2 | . . 2 . . Largest Group 2 | . . 2 . . Highest-Rated Group 46 | . . 46 . . Highest-Rated Ally 31 | . . 31 . . Total Orders . | . . . . . Ally Attacks . | . . . . . Total Damage . | . . . . . Kills . | . . . . . Allies Corrupted . | . . . . . Allies Melted . | . . . . . Intel | -11 -10 -10 -9 -9 ------- Run | Jun Mat Min Mat Sto Robot Analysis Total . | . . . . . Derelict Logs Recovered 1 | . . 1 . . Drone Launches . | . . . . . Drone Recoveries . | . . . . . Exploration | -11 -10 -10 -9 -9 ------------- Run | Jun Mat Min Mat Sto Turns Passed 4822 | 77 1377 894 493 1981 Spaces Moved 1682 | 45 623 425 155 434 Core 11 | 11 . . . . Treads 562 | 34 240 . . 288 Legs 1109 | . 383 425 155 146 Wheels . | . . . . . Hover . | . . . . . Flight . | . . . . . Fastest Speed 50 | 50 160 190 120 320 Average Speed 241 | 133 178 190 240 394 Slowest Speed 750 | 160 190 190 540 750 Overloaded Moves . | . . . . . Propulsion Burnouts . | . . . . . Robots Hopped . | . . . . . Cave-ins Triggered . | . . . . . Exploration Rate (%) 55 | 3 96 95 14 70 Regions Visited 4 Branch Regions 2 Pre-discovered Areas . | . . . . . Known Exits Taken 1 | . . . 1 . Unknown Exits Taken 3 | 1 1 1 . . Scrap Searched 1 | . . 1 . . Spaces Dug . | . . . . . Terrain Destroyed . | . . . . . Melee . | . . . . . Projectile . | . . . . . AOE . | . . . . . Terrain Rammed . | . . . . . Walls Destroyed . | . . . . . Machines Disabled . | . . . . . Actions | -11 -10 -10 -9 -9 --------- Run | Jun Mat Min Mat Sto Total 2176 | 62 799 466 238 611 Wait 184 | . 80 9 21 74 Move 1678 | 44 622 424 154 434 Hop . | . . . . . Pick Up 85 | 12 24 3 21 25 Fast Attach . | . . . . . Attach 34 | 6 7 3 7 11 Detach . | . . . . . Swap 6 | . 2 . 1 3 Drop 36 | . 12 2 9 13 Fire 153 | . 52 25 25 51 Melee . | . . . . . Ram . | . . . . . Kick . | . . . . . Crush . | . . . . . Escape Stasis . | . . . . . Rewire . | . . . . . Trap . | . . . . . Miscellaneous . | . . . . . Route ------- -11/Junkyard -10/Materials (discovered 4 exits: *Mat x3 / [*Min]) -10/Mines (discovered 2 exits: *Mat x2) -9/Materials -9/Storage (discovered 1 exit: [*Mat]) History --------- Turn | Location | Event 5 | -11/Junkyard | Discovered new exit (range 15) 78 | -11/Junkyard | Entered Materials 309 | -10/Materials | Build established: Mutant 459 | -10/Materials | Discovered new exit (range 8) 681 | -10/Materials | Discovered new exit (range 13) 1048 | -10/Materials | Discovered new exit (range 10) 1195 | -10/Materials | Discovered new exit (range 3) 1266 | -10/Materials | Repaired Med. Matter Pod 1455 | -10/Materials | Entered Mines 1480 | -10/Mines | Core integrity fell below 50% 1853 | -10/Mines | Discovered new exit (range 8) 2170 | -10/Mines | Excavation squad dispatched 2170 | -10/Mines | A large section of the Mines collapsed 2317 | -10/Mines | Discovered new exit (range 15) 2349 | -10/Mines | Entered Materials 2349 | -9/Materials | Evolved 2 slots: Propulsion x1, Utility x1 2350 | -9/Materials | Identified exit to Storage 2842 | -9/Materials | Entered Storage 2939 | -9/Storage | Build established: Hauler-Mutant 3630 | -9/Storage | Core integrity fell below 50% 3664 | -9/Storage | Lost 5 parts (3n2w) 4419 | -9/Storage | Core integrity fell below 20% 4682 | -9/Storage | Discovered new exit (range 15) 4823 | -9/Storage | Destroyed by Y-45 Defender with Heavy Assault Rifle Last Messages --------------- 04712_ Lgt. Nuclear Core destroyed. 04724_ Y-45 Defender destroyed. 04727_ Acquired 14 matter. 04788_ Triggered EMP Trap. 04788_ A bubble of electromagnetic force engulfs the area. 04788_ EMP Trap short circuited. 04788_ Door malfunctions. 04788_ A bubble of electromagnetic force engulfs the area. 04797_ Triggered EMP Trap. 04797_ A bubble of electromagnetic force engulfs the area. 04797_ EMP Trap short circuited. 04797_ A bubble of electromagnetic force engulfs the area. 04807_ Triggered EMP Trap. 04807_ A bubble of electromagnetic force engulfs the area. 04820_ Critical hit (Burn: +37). Map ----- +----------------------------------------------------+ | [[ #???# # " # #????????? | | [] #???# # # #????????? | | [] #???# ############ #????????? | | =#???# #??????????# #????????? | | ""=#???# #??????????? ?????????? | | T"!##### #???????????????????????? | | ""%/ #???????????????????????? | | =!=##### #???????????????????????? | | ####???# #???????????????????????? | | ???????# #??????????? ?????????? | | ???????# #??????????? ?????????? | | ???????# #??????????# ?????????? | | ???????# #??????????# #????????? | | ???????# #??????????# #????????? | | ???????# #?????????## ##???????? | | ??????? ??????#### #???????? | | ??????? T" ??????? #???????? | | ??????? " ???????? T +???????? | | ??????? ? ????????? #???????? | | ??????? ?? #????????? ????????? | | ??????????############# #?#######? | | ######????# # #? # | | #????# ! # # """# | | #????# # # """# | | [ #????# !/ Y """# | | #????# # @# # | | #????# / # #! """# | | #????# [ ] # #? """? | | ] #????##+########+# #? """? | | ##+###?????# #??????# # #?? ? | | ## ######### ######## #####??# ##### | | #?????##???? | | < #??????????? | | % #??????????? | | ############+######+###+#??????????? | | #????? !! ????????????????????? | | #??? """"" ??????????????????? | | #### """"" #?????????????????? | | ""## """"" #?????????????????? | | Y"# #?????????????????? | | """ ""## #?????????????????? | | """ #### ??????????????????? | | """ #??# ????????????????????? | | #####??###?###?????????????????????? | | | | | | | | | | | | | +----------------------------------------------------+ Best States ------------- Heat Dissipation 28 Energy Generation 14 Energy Capacity 250 Matter Stores 400 Matter Capacity 400 Sight Range 16 Terrain Scan Density 10 Power Shielding 33 Evasion (%) 55 Recoil Reduction 3 Item Schematics ----------------- Arm. Treads | -9/Storage | Hacked Robot Schematics ------------------ None Fabricated ------------ Nothing Alien Tech Used ----------------- None Achievements -------------- Packrat Tank Challenges ------------ None Game ------ Seed GyrokineticNeutronArchive Manual? 0 Play Time 00:37:14 Cumulative 13.9 hours Start 2023.09.05 @ 03:36:44 End 2023.09.05 @ 04:14:05 Sessions 1 Manual Loads 0 Difficulty Rogue Special Mode None Game No. 16 Rogue 16 Adventurer 0 Explorer 0 Win Type - Total 0 Types 0/0/0/0/0/0/0/0/0 Lore% 18 Gallery% 20 Achievement% 17 Wizard Run 0 Options --------- ASCII 0 Keyboard 0 Movement Numpad Keybinds 0 Fullscreen 1 Font 16/SmallcapsGlow Map View 50x54 Tactical HUD 1 Map Filters NONE Filters NONE Steam 1 RUN: b4739f46-6bf7-4779-8112-5ca993e0fd2e